[Event "Early-Titled-Tuesday-Blitz-March-19-2024"]
[Site "Chess.com"]
[Date "2024.03.19"]
[Round "1"]
[White "Danny_Billiards"]
[Black "amylazy"]
[Result "1-0"]
[WhiteElo "2773"]
[BlackElo "2420"]
[TimeControl "180+1"]
[EndTime "8:06:49 PDT"]
[Termination "Danny_Billiards won by checkmate"]

1. d4 {[%clk 0:03:00.6]} 1... Nf6 {[%clk 0:02:46.9]} 2. Nc3 {[%clk 0:02:58.7]}
2... d5 {[%clk 0:02:39.6]} 3. Bf4 {[%clk 0:02:58.4]} 3... c6 {[%clk 0:02:34.3]}
4. e3 {[%clk 0:02:56.6]} 4... Bf5 {[%clk 0:02:34.2]} 5. f3 {[%clk 0:02:55.5]}
5... Qb6 {[%clk 0:02:33.7]} 6. g4 {[%clk 0:02:43.9]} 6... Bg6 {[%clk 0:02:32.4]}
7. Rb1 {[%clk 0:02:40.9]} 7... Nbd7 {[%clk 0:02:18.8]} 8. h4 {[%clk 0:02:40.7]}
8... h6 {[%clk 0:02:15.4]} 9. Bd3 {[%clk 0:02:22.2]} 9... Bxd3 {[%clk
0:02:10.9]} 10. Qxd3 {[%clk 0:02:23.1]} 10... e6 {[%clk 0:02:08.6]} 11. Nge2
{[%clk 0:02:23]} 11... Be7 {[%clk 0:01:44.4]} 12. Kf2 {[%clk 0:02:21.3]} 12...
O-O-O {[%clk 0:01:40.7]} 13. b4 {[%clk 0:02:17]} 13... g5 {[%clk 0:01:39.2]} 14.
Bg3 {[%clk 0:02:02.1]} 14... gxh4 {[%clk 0:01:39.1]} 15. Bxh4 {[%clk 0:02:03]}
15... e5 {[%clk 0:01:38.3]} 16. dxe5 {[%clk 0:01:32]} 16... Nxe5 {[%clk
0:01:37.6]} 17. Qf5+ {[%clk 0:01:32.2]} 17... Ned7 {[%clk 0:01:33.9]} 18. b5
{[%clk 0:01:32.3]} 18... Rhe8 {[%clk 0:00:57.7]} 19. bxc6 {[%clk 0:01:13.1]}
19... Qxc6 {[%clk 0:00:57.4]} 20. Nb5 {[%clk 0:01:11.8]} 20... Bc5 {[%clk
0:00:56.6]} 21. Ned4 {[%clk 0:01:12.2]} 21... Qa6 {[%clk 0:00:47.1]} 22. Bg3
{[%clk 0:01:01.3]} 22... Ne4+ {[%clk 0:00:11.7]} 23. fxe4 {[%clk 0:00:59.6]}
23... Rxe4 {[%clk 0:00:12.6]} 24. Qxd5 {[%clk 0:00:49.6]} 24... Rde8 {[%clk
0:00:09.7]} 25. Nc7 {[%clk 0:00:25.7]} 25... Qf6+ {[%clk 0:00:08.5]} 26. Kg2
{[%clk 0:00:26.2]} 26... Rxe3 {[%clk 0:00:08.2]} 27. Qxb7+ {[%clk 0:00:23.9]}
27... Kd8 {[%clk 0:00:08.6]} 28. Qa8+ {[%clk 0:00:24.5]} 28... Ke7 {[%clk
0:00:08.5]} 29. Qxe8# {[%clk 0:00:25.2]} 1-0

[Event "Early-Titled-Tuesday-Blitz-March-19-2024"]
[Site "Chess.com"]
[Date "2024.03.19"]
[Round "1"]
[White "Aleksandar-Topalov"]
[Black "Titus369"]
[Result "1-0"]
[WhiteElo "2284"]
[BlackElo "2624"]
[TimeControl "180+1"]
[EndTime "8:06:50 PDT"]
[Termination "Aleksandar-Topalov won on time"]

1. b3 {[%clk 0:03:00.9]} 1... e5 {[%clk 0:02:56.8]} 2. Bb2 {[%clk 0:03:00.1]}
2... Nc6 {[%clk 0:02:21.7]} 3. e3 {[%clk 0:02:56.5]} 3... Bd6 {[%clk 0:02:08.8]}
4. Na3 {[%clk 0:02:54.4]} 4... Nf6 {[%clk 0:01:57.6]} 5. Nc4 {[%clk 0:02:53.9]}
5... Qe7 {[%clk 0:01:57.4]} 6. Nxd6+ {[%clk 0:02:50.3]} 6... cxd6 {[%clk
0:01:58.3]} 7. Nf3 {[%clk 0:02:49.9]} 7... d5 {[%clk 0:01:57.7]} 8. Be2 {[%clk
0:02:47.4]} 8... d6 {[%clk 0:01:57.7]} 9. O-O {[%clk 0:02:47]} 9... a6 {[%clk
0:01:57]} 10. a3 {[%clk 0:02:45.5]} 10... h6 {[%clk 0:01:54.1]} 11. Ne1 {[%clk
0:02:31.9]} 11... h5 {[%clk 0:01:50.9]} 12. f4 {[%clk 0:02:25.7]} 12... h4
{[%clk 0:01:47.9]} 13. Nd3 {[%clk 0:02:04.6]} 13... Bd7 {[%clk 0:01:39.3]} 14.
Nb4 {[%clk 0:01:51.7]} 14... Nxb4 {[%clk 0:01:35]} 15. axb4 {[%clk 0:01:51.6]}
15... Rc8 {[%clk 0:01:21.8]} 16. Rc1 {[%clk 0:01:37.6]} 16... Ne4 {[%clk
0:01:17.7]} 17. Bf3 {[%clk 0:01:11.7]} 17... g5 {[%clk 0:00:56.8]} 18. Bxe4
{[%clk 0:00:55.7]} 18... dxe4 {[%clk 0:00:56.8]} 19. fxe5 {[%clk 0:00:55.5]}
19... dxe5 {[%clk 0:00:54.4]} 20. Bc3 {[%clk 0:00:49.2]} 20... f5 {[%clk
0:00:51.3]} 21. Ra1 {[%clk 0:00:41]} 21... Rh6 {[%clk 0:00:42.8]} 22. Ra5 {[%clk
0:00:40.1]} 22... b5 {[%clk 0:00:35.4]} 23. Qa1 {[%clk 0:00:38.1]} 23... Rcc6
{[%clk 0:00:29.3]} 24. Bxe5 {[%clk 0:00:33.2]} 24... Rxc2 {[%clk 0:00:29]} 25.
Bc3 {[%clk 0:00:28.5]} 25... h3 {[%clk 0:00:16.3]} 26. g3 {[%clk 0:00:27.5]}
26... f4 {[%clk 0:00:14]} 27. Rxa6 {[%clk 0:00:23.4]} 1-0

[Event "Early-Titled-Tuesday-Blitz-March-19-2024"]
[Site "Chess.com"]
[Date "2024.03.19"]
[Round "1"]
[White "Happy1712Drummer"]
[Black "Lukianoo"]
[Result "0-1"]
[WhiteElo "2454"]
[BlackElo "2824"]
[TimeControl "180+1"]
[EndTime "8:06:59 PDT"]
[Termination "Lukianoo won on time"]

1. e4 {[%clk 0:03:00.9]} 1... c6 {[%clk 0:03:00]} 2. d4 {[%clk 0:02:59.7]} 2...
d5 {[%clk 0:03:00.9]} 3. Nc3 {[%clk 0:03:00.2]} 3... g6 {[%clk 0:02:57.3]} 4. h3
{[%clk 0:02:18.4]} 4... Bg7 {[%clk 0:02:56.9]} 5. Nf3 {[%clk 0:02:18.3]} 5...
Nh6 {[%clk 0:02:57.2]} 6. Bf4 {[%clk 0:02:13.3]} 6... f6 {[%clk 0:02:55.7]} 7.
Be2 {[%clk 0:02:09.2]} 7... Nf7 {[%clk 0:02:55.4]} 8. O-O {[%clk 0:02:09.1]}
8... e5 {[%clk 0:02:27.2]} 9. Bg3 {[%clk 0:02:07.7]} 9... dxe4 {[%clk
0:02:26.5]} 10. Nxe4 {[%clk 0:02:07.5]} 10... f5 {[%clk 0:02:26.7]} 11. Bh4
{[%clk 0:01:57.7]} 11... Qc7 {[%clk 0:02:20.6]} 12. Nf6+ {[%clk 0:01:57]} 12...
Bxf6 {[%clk 0:02:16.4]} 13. Bxf6 {[%clk 0:01:57.9]} 13... e4 {[%clk 0:01:55.9]}
14. Bxh8 {[%clk 0:01:26.4]} 14... exf3 {[%clk 0:01:49]} 15. Bc4 {[%clk
0:01:26.6]} 15... Nxh8 {[%clk 0:01:41.3]} 16. Re1+ {[%clk 0:01:26.7]} 16... Kf8
{[%clk 0:01:36.4]} 17. Qxf3 {[%clk 0:01:22.9]} 17... Nd7 {[%clk 0:01:18.3]} 18.
Qa3+ {[%clk 0:00:28.6]} 18... c5 {[%clk 0:01:13.6]} 19. Rad1 {[%clk 0:00:26.9]}
19... Nf7 {[%clk 0:00:50.8]} 20. Qe3 {[%clk 0:00:20.4]} 20... Nf6 {[%clk
0:00:48.2]} 21. dxc5 {[%clk 0:00:20.7]} 21... Ne4 {[%clk 0:00:42.6]} 22. Qd4
{[%clk 0:00:19.3]} 22... Qe5 {[%clk 0:00:26.5]} 23. Qd3 {[%clk 0:00:10.4]} 23...
Qxc5 {[%clk 0:00:23.3]} 24. Re3 {[%clk 0:00:08.5]} 24... Nfd6 {[%clk 0:00:19.7]}
25. Bd5 {[%clk 0:00:08.3]} 25... Bd7 {[%clk 0:00:19.2]} 26. f3 {[%clk
0:00:07.6]} 26... Bb5 {[%clk 0:00:19]} 27. c4 {[%clk 0:00:07.5]} 27... Bxc4
{[%clk 0:00:18.3]} 28. Bxc4 {[%clk 0:00:07.7]} 28... Nxc4 {[%clk 0:00:19.2]} 0-1

[Event "Early-Titled-Tuesday-Blitz-March-19-2024"]
[Site "Chess.com"]
[Date "2024.03.19"]
[Round "1"]
[White "Felix-Rose"]
[Black "SirStrateg"]
[Result "0-1"]
[WhiteElo "2265"]
[BlackElo "2639"]
[TimeControl "180+1"]
[EndTime "8:06:59 PDT"]
[Termination "SirStrateg won by resignation"]

1. e4 {[%clk 0:02:46.1]} 1... d6 {[%clk 0:02:59.8]} 2. d4 {[%clk 0:02:45.8]}
2... Nf6 {[%clk 0:03:00.1]} 3. Nc3 {[%clk 0:02:45.6]} 3... c6 {[%clk 0:03:00.6]}
4. f4 {[%clk 0:02:45]} 4... Qa5 {[%clk 0:03:00.4]} 5. Bd3 {[%clk 0:02:41.8]}
5... e5 {[%clk 0:03:00.4]} 6. Nf3 {[%clk 0:02:40.1]} 6... exd4 {[%clk
0:03:00.8]} 7. Nxd4 {[%clk 0:02:39.9]} 7... g6 {[%clk 0:03:01.5]} 8. Qe2 {[%clk
0:02:35.4]} 8... Bg7 {[%clk 0:03:00.9]} 9. O-O {[%clk 0:02:35.2]} 9... Qb6
{[%clk 0:02:51]} 10. Be3 {[%clk 0:02:34.9]} 10... Ng4 {[%clk 0:02:50.5]} 11. Nf5
{[%clk 0:02:30.2]} 11... Nxe3 {[%clk 0:02:49]} 12. Nxe3 {[%clk 0:02:24.7]} 12...
Qxb2 {[%clk 0:02:39.3]} 13. Na4 {[%clk 0:02:17]} 13... Qd4 {[%clk 0:02:37.8]}
14. c4 {[%clk 0:01:49.8]} 14... O-O {[%clk 0:02:37.7]} 15. Rad1 {[%clk
0:01:47.7]} 15... Bg4 {[%clk 0:02:24.4]} 16. Qxg4 {[%clk 0:01:40.6]} 16... Qxe3+
{[%clk 0:02:24.2]} 17. Kh1 {[%clk 0:01:40.7]} 17... h5 {[%clk 0:02:15.1]} 18.
Qg5 {[%clk 0:01:33.8]} 18... Nd7 {[%clk 0:02:06.6]} 19. Qe7 {[%clk 0:01:21.7]}
19... Nc5 {[%clk 0:01:49.9]} 20. Rf3 {[%clk 0:01:15.1]} 20... Qd4 {[%clk
0:01:40.2]} 21. Nxc5 {[%clk 0:00:48.1]} 21... Qxc5 {[%clk 0:01:39.4]} 22. Qxb7
{[%clk 0:00:46.7]} 22... Rab8 {[%clk 0:01:39.7]} 23. Qe7 {[%clk 0:00:35.8]}
23... Rfe8 {[%clk 0:01:36.5]} 24. Qd7 {[%clk 0:00:33.4]} 24... Red8 {[%clk
0:01:24]} 25. Qe7 {[%clk 0:00:31.9]} 25... Re8 {[%clk 0:01:09.6]} 26. Qd7 {[%clk
0:00:30.5]} 26... Rbd8 {[%clk 0:01:10]} 27. Qb7 {[%clk 0:00:29.9]} 27... Bd4
{[%clk 0:00:58.4]} 28. f5 {[%clk 0:00:25.9]} 28... g5 {[%clk 0:00:58.9]} 29. Rg3
{[%clk 0:00:12.1]} 29... Bf6 {[%clk 0:00:58.9]} 30. Rh3 {[%clk 0:00:09]} 30...
h4 {[%clk 0:00:55.5]} 31. Be2 {[%clk 0:00:09]} 31... Rxe4 {[%clk 0:00:51.2]} 32.
Bh5 {[%clk 0:00:08.9]} 32... Re7 {[%clk 0:00:49.4]} 33. Qb1 {[%clk 0:00:08.5]}
33... Rde8 {[%clk 0:00:46.9]} 34. Rhd3 {[%clk 0:00:08.4]} 34... Qf2 {[%clk
0:00:39.4]} 35. Rxd6 {[%clk 0:00:07.5]} 35... Re1+ {[%clk 0:00:39.2]} 0-1

[Event "Early-Titled-Tuesday-Blitz-March-19-2024"]
[Site "Chess.com"]
[Date "2024.03.19"]
[Round "1"]
[White "Shuvalov"]
[Black "mitrabhaa"]
[Result "0-1"]
[WhiteElo "2566"]
[BlackElo "3075"]
[TimeControl "180+1"]
[EndTime "8:07:00 PDT"]
[Termination "mitrabhaa won by resignation"]

1. d4 {[%clk 0:03:00.9]} 1... Nf6 {[%clk 0:02:59.5]} 2. c4 {[%clk 0:03:00.6]}
2... e6 {[%clk 0:02:59.4]} 3. Nf3 {[%clk 0:02:59.4]} 3... b6 {[%clk 0:02:58.9]}
4. g3 {[%clk 0:02:59.3]} 4... Ba6 {[%clk 0:02:58.9]} 5. b3 {[%clk 0:02:59.4]}
5... Bb7 {[%clk 0:02:59.4]} 6. Bg2 {[%clk 0:02:58.6]} 6... Bb4+ {[%clk
0:02:59.9]} 7. Bd2 {[%clk 0:02:57]} 7... a5 {[%clk 0:03:00.5]} 8. O-O {[%clk
0:02:56.1]} 8... O-O {[%clk 0:02:56.6]} 9. a3 {[%clk 0:02:45.2]} 9... Bxd2
{[%clk 0:02:48.8]} 10. Nbxd2 {[%clk 0:02:42.3]} 10... d6 {[%clk 0:02:49.2]} 11.
Qc2 {[%clk 0:02:41.3]} 11... Nbd7 {[%clk 0:02:49.1]} 12. e4 {[%clk 0:02:41.1]}
12... Qe7 {[%clk 0:02:49.5]} 13. Rfe1 {[%clk 0:02:40.3]} 13... e5 {[%clk
0:02:49.6]} 14. Rad1 {[%clk 0:02:38.8]} 14... exd4 {[%clk 0:02:48.9]} 15. Nxd4
{[%clk 0:02:38.3]} 15... Nc5 {[%clk 0:02:49.5]} 16. b4 {[%clk 0:02:22.3]} 16...
axb4 {[%clk 0:02:48]} 17. axb4 {[%clk 0:02:23.2]} 17... Na6 {[%clk 0:02:41.5]}
18. e5 {[%clk 0:02:19.2]} 18... Bxg2 {[%clk 0:02:41.2]} 19. exf6 {[%clk
0:02:17.7]} 19... Qxf6 {[%clk 0:02:42.1]} 20. Kxg2 {[%clk 0:02:08.9]} 20... Qxd4
{[%clk 0:02:31.8]} 21. Ne4 {[%clk 0:02:02.5]} 21... Qe5 {[%clk 0:02:30.6]} 22.
Nxd6 {[%clk 0:02:00]} 22... Qh5 {[%clk 0:02:28.3]} 23. Nf5 {[%clk 0:01:55.6]}
23... Nxb4 {[%clk 0:02:08.9]} 24. Ne7+ {[%clk 0:01:36.7]} 24... Kh8 {[%clk
0:02:05.6]} 25. Qb2 {[%clk 0:01:37.2]} 25... c5 {[%clk 0:02:00]} 26. Rd6 {[%clk
0:01:31.1]} 26... Rad8 {[%clk 0:01:31.3]} 27. Qd2 {[%clk 0:01:21.8]} 27... Ra8
{[%clk 0:01:09]} 28. Qf4 {[%clk 0:01:14.6]} 28... f6 {[%clk 0:00:48.3]} 29. Nd5
{[%clk 0:01:08.8]} 29... Nd3 {[%clk 0:00:43.1]} 30. Qe4 {[%clk 0:01:00.6]} 30...
Nxe1+ {[%clk 0:00:40]} 31. Qxe1 {[%clk 0:01:01.5]} 31... Rae8 {[%clk 0:00:37.5]}
32. Qd2 {[%clk 0:00:56.4]} 32... Qe5 {[%clk 0:00:29.6]} 33. Nxb6 {[%clk
0:00:39.9]} 33... Qe4+ {[%clk 0:00:28.6]} 34. Kh3 {[%clk 0:00:37.6]} 34... Re5
{[%clk 0:00:25.5]} 35. Rd5 {[%clk 0:00:33.2]} 35... Rfe8 {[%clk 0:00:21.4]} 36.
Nd7 {[%clk 0:00:30.5]} 36... Rxd5 {[%clk 0:00:18.5]} 37. cxd5 {[%clk 0:00:31.4]}
37... Qf5+ {[%clk 0:00:18.3]} 38. Kg2 {[%clk 0:00:31.3]} 38... Qxd7 {[%clk
0:00:18.8]} 39. f3 {[%clk 0:00:30.1]} 39... Rd8 {[%clk 0:00:18.1]} 40. Qe3
{[%clk 0:00:29.1]} 40... Qxd5 {[%clk 0:00:18.1]} 0-1

[Event "Early-Titled-Tuesday-Blitz-March-19-2024"]
[Site "Chess.com"]
[Date "2024.03.19"]
[Round "1"]
[White "jeetjain"]
[Black "Zohid6"]
[Result "0-1"]
[WhiteElo "2502"]
[BlackElo "2887"]
[TimeControl "180+1"]
[EndTime "8:07:00 PDT"]
[Termination "Zohid6 won by resignation"]

1. Nf3 {[%clk 0:03:00.9]} 1... Nf6 {[%clk 0:02:59.4]} 2. c4 {[%clk 0:03:00.6]}
2... e6 {[%clk 0:02:59.4]} 3. Nc3 {[%clk 0:03:00.3]} 3... d5 {[%clk 0:03:00.1]}
4. e3 {[%clk 0:03:00.9]} 4... c5 {[%clk 0:02:59.6]} 5. cxd5 {[%clk 0:03:00.6]}
5... exd5 {[%clk 0:03:00.5]} 6. d4 {[%clk 0:03:01.1]} 6... Nc6 {[%clk
0:03:00.9]} 7. Bb5 {[%clk 0:03:00.9]} 7... cxd4 {[%clk 0:02:59.9]} 8. Nxd4
{[%clk 0:03:00.7]} 8... Bd7 {[%clk 0:03:00.2]} 9. O-O {[%clk 0:02:59.3]} 9...
Bd6 {[%clk 0:03:00.1]} 10. Nf3 {[%clk 0:02:59.4]} 10... a6 {[%clk 0:02:57.6]}
11. Be2 {[%clk 0:02:57.9]} 11... Be6 {[%clk 0:02:49.4]} 12. b3 {[%clk 0:02:55]}
12... O-O {[%clk 0:02:47.6]} 13. Bb2 {[%clk 0:02:55.6]} 13... Rc8 {[%clk
0:02:47.7]} 14. h3 {[%clk 0:02:54.9]} 14... Qa5 {[%clk 0:02:43]} 15. Nd4 {[%clk
0:02:32.6]} 15... Bd7 {[%clk 0:02:30.9]} 16. Bf3 {[%clk 0:02:28]} 16... Rfe8
{[%clk 0:02:30.3]} 17. Nce2 {[%clk 0:02:20]} 17... Ne5 {[%clk 0:02:23.1]} 18.
Nf4 {[%clk 0:02:15]} 18... h6 {[%clk 0:02:09.8]} 19. Be2 {[%clk 0:02:10.3]}
19... Ne4 {[%clk 0:02:07.3]} 20. Nf3 {[%clk 0:01:54.5]} 20... Nxf3+ {[%clk
0:01:45]} 21. Bxf3 {[%clk 0:01:53.5]} 21... Nd2 {[%clk 0:01:38.7]} 22. Re1
{[%clk 0:01:36.5]} 22... Bxf4 {[%clk 0:01:38.1]} 23. exf4 {[%clk 0:01:25.7]}
23... Nxf3+ {[%clk 0:01:37.8]} 24. gxf3 {[%clk 0:01:24.5]} 24... Bxh3 {[%clk
0:01:27.1]} 25. Rxe8+ {[%clk 0:01:18.9]} 25... Rxe8 {[%clk 0:01:28]} 26. Qd4
{[%clk 0:01:19]} 26... f6 {[%clk 0:01:28.1]} 27. Bc3 {[%clk 0:01:14.1]} 27...
Qb5 {[%clk 0:01:23.8]} 28. Rd1 {[%clk 0:01:11.4]} 28... Be6 {[%clk 0:01:04.8]}
29. Re1 {[%clk 0:01:06.9]} 29... Bf7 {[%clk 0:01:05.1]} 30. Rxe8+ {[%clk
0:01:06]} 30... Qxe8 {[%clk 0:01:05.9]} 31. Qb6 {[%clk 0:01:02.9]} 31... Qc8
{[%clk 0:01:05.1]} 32. Bd4 {[%clk 0:00:51.8]} 32... Qc1+ {[%clk 0:00:43.4]} 33.
Kg2 {[%clk 0:00:51.8]} 33... Qxf4 {[%clk 0:00:44.3]} 34. Be3 {[%clk 0:00:48.3]}
34... Qb8 {[%clk 0:00:43.5]} 35. a4 {[%clk 0:00:41.4]} 35... Qc8 {[%clk
0:00:43]} 36. a5 {[%clk 0:00:39.8]} 36... Bh5 {[%clk 0:00:42.5]} 37. Qd4 {[%clk
0:00:37.3]} 37... Qf5 {[%clk 0:00:42.4]} 38. Qf4 {[%clk 0:00:34.3]} 38... Qxf4
{[%clk 0:00:42.6]} 39. Bxf4 {[%clk 0:00:35.2]} 39... d4 {[%clk 0:00:43.2]} 40.
Bd2 {[%clk 0:00:16.9]} 40... Kf7 {[%clk 0:00:42.4]} 41. Kg3 {[%clk 0:00:16.4]}
41... Ke6 {[%clk 0:00:41.9]} 42. Kf4 {[%clk 0:00:17.3]} 42... Kd5 {[%clk
0:00:40.5]} 43. Kf5 {[%clk 0:00:17.8]} 43... Bxf3 {[%clk 0:00:39.2]} 0-1

[Event "Early-Titled-Tuesday-Blitz-March-19-2024"]
[Site "Chess.com"]
[Date "2024.03.19"]
[Round "1"]
[White "atalz0"]
[Black "AlexPapasimakopoulos"]
[Result "0-1"]
[WhiteElo "2375"]
[BlackElo "2722"]
[TimeControl "180+1"]
[EndTime "8:07:03 PDT"]
[Termination "AlexPapasimakopoulos won by resignation"]

1. d4 {[%clk 0:03:00.9]} 1... e6 {[%clk 0:02:50.8]} 2. c4 {[%clk 0:03:00.7]}
2... d5 {[%clk 0:02:48.2]} 3. Nc3 {[%clk 0:03:00.1]} 3... a6 {[%clk 0:02:48.6]}
4. cxd5 {[%clk 0:02:58.9]} 4... exd5 {[%clk 0:02:49.5]} 5. Nf3 {[%clk
0:02:58.7]} 5... c6 {[%clk 0:02:49.7]} 6. Bf4 {[%clk 0:02:56.9]} 6... Bd6 {[%clk
0:02:49.6]} 7. Bxd6 {[%clk 0:02:57]} 7... Qxd6 {[%clk 0:02:50.5]} 8. e4 {[%clk
0:02:57.4]} 8... dxe4 {[%clk 0:02:47.9]} 9. Nxe4 {[%clk 0:02:58.3]} 9... Qb4+
{[%clk 0:02:45.6]} 10. Qd2 {[%clk 0:02:54.1]} 10... Qxd2+ {[%clk 0:02:42.3]} 11.
Kxd2 {[%clk 0:02:53.3]} 11... Nd7 {[%clk 0:02:35]} 12. Bc4 {[%clk 0:02:42.9]}
12... Nh6 {[%clk 0:02:22.3]} 13. Rhe1 {[%clk 0:01:53.6]} 13... O-O {[%clk
0:02:21.7]} 14. Bb3 {[%clk 0:01:41.4]} 14... a5 {[%clk 0:02:17.2]} 15. a4 {[%clk
0:01:34.2]} 15... Nb6 {[%clk 0:02:17.2]} 16. Nd6 {[%clk 0:01:25.7]} 16... Nf5
{[%clk 0:02:07.3]} 17. Nxf7 {[%clk 0:01:15.4]} 17... Nd5 {[%clk 0:02:03.6]} 18.
N7g5 {[%clk 0:00:52.4]} 18... h6 {[%clk 0:02:00]} 19. Bxd5+ {[%clk 0:00:47.7]}
19... cxd5 {[%clk 0:01:58.2]} 20. Ne6 {[%clk 0:00:48.6]} 20... Bxe6 {[%clk
0:01:52.6]} 21. Rxe6 {[%clk 0:00:49.5]} 21... Rac8 {[%clk 0:01:44.4]} 22. b3
{[%clk 0:00:42.3]} 22... g5 {[%clk 0:01:31.8]} 23. h3 {[%clk 0:00:40.9]} 23...
Rc6 {[%clk 0:01:18.7]} 24. Rxc6 {[%clk 0:00:40]} 24... bxc6 {[%clk 0:01:19.6]}
25. Rc1 {[%clk 0:00:40]} 25... Rb8 {[%clk 0:01:20.3]} 26. Kc3 {[%clk 0:00:29.1]}
26... Nd6 {[%clk 0:01:17.7]} 27. Nd2 {[%clk 0:00:25.9]} 27... Kf7 {[%clk
0:01:16.3]} 28. Re1 {[%clk 0:00:25.4]} 28... Kf6 {[%clk 0:01:14]} 29. f3 {[%clk
0:00:24.8]} 29... Nf5 {[%clk 0:01:11.4]} 30. Nf1 {[%clk 0:00:22.4]} 30... Rc8
{[%clk 0:01:11.4]} 31. Ne3 {[%clk 0:00:18.8]} 31... h5 {[%clk 0:01:09.6]} 32.
Nxf5 {[%clk 0:00:18.6]} 32... Kxf5 {[%clk 0:01:10.5]} 33. Re5+ {[%clk
0:00:19.1]} 33... Kf4 {[%clk 0:01:11]} 34. Kd3 {[%clk 0:00:16.2]} 34... Rb8
{[%clk 0:01:09.2]} 35. Kc3 {[%clk 0:00:15.5]} 35... Rg8 {[%clk 0:01:07.6]} 36.
Re6 {[%clk 0:00:15.1]} 36... Kg3 {[%clk 0:01:07.2]} 37. Rxc6 {[%clk 0:00:13.2]}
37... Kxg2 {[%clk 0:01:07.7]} 38. Rh6 {[%clk 0:00:13.9]} 38... h4 {[%clk
0:01:07]} 39. b4 {[%clk 0:00:14.1]} 39... Kxh3 {[%clk 0:01:03.9]} 40. bxa5
{[%clk 0:00:13.6]} 40... Kg3 {[%clk 0:01:04.4]} 41. a6 {[%clk 0:00:13.3]} 41...
h3 {[%clk 0:01:03.8]} 42. Kb4 {[%clk 0:00:12.9]} 42... h2 {[%clk 0:01:00]} 43.
Kb5 {[%clk 0:00:13.2]} 43... Kg2 {[%clk 0:01:00.5]} 44. a7 {[%clk 0:00:13.7]}
44... h1=Q {[%clk 0:00:59.9]} 45. Rxh1 {[%clk 0:00:13.9]} 45... Kxh1 {[%clk
0:01:00.8]} 46. Kb6 {[%clk 0:00:14.2]} 46... Kg2 {[%clk 0:01:01.5]} 47. Kb7
{[%clk 0:00:14.8]} 47... Kxf3 {[%clk 0:01:00.3]} 48. a8=Q {[%clk 0:00:15.7]}
48... Rxa8 {[%clk 0:01:00.1]} 49. Kxa8 {[%clk 0:00:16.6]} 49... g4 {[%clk
0:01:00.6]} 50. a5 {[%clk 0:00:17.5]} 50... g3 {[%clk 0:01:01.5]} 51. a6 {[%clk
0:00:18.3]} 51... g2 {[%clk 0:01:02.4]} 52. a7 {[%clk 0:00:19]} 52... g1=Q
{[%clk 0:01:02.6]} 53. Kb7 {[%clk 0:00:19]} 53... Qb1+ {[%clk 0:01:00.5]} 54.
Ka8 {[%clk 0:00:18.2]} 54... Qa1 {[%clk 0:00:58.7]} 55. Kb7 {[%clk 0:00:17.8]}
55... Qb2+ {[%clk 0:00:59.3]} 56. Ka8 {[%clk 0:00:18.1]} 56... Qxd4 {[%clk
0:00:59.4]} 57. Kb7 {[%clk 0:00:17.5]} 57... Qxa7+ {[%clk 0:01:00]} 0-1